Cogmind - Beta 15 @@@ ROGUE MODE // 2025.09.14 @ 12:10:00 Player: konomiyu Result: Destroyed by G-50 Soldier with Heavy Laser Performance ------------- Evolutions (3) 1500 Regions Visited (6) 1200 Robots Destroyed (146) 730 Value Destroyed (3821) 3821 Prototype IDs (10) 200 Alien Tech Used (0) 0 Bonus (131) 131 TOTAL SCORE: 7582 Bonus ------- High Alert Combat Kills 60 Follower Combat Kills 71 Cogmind --------- Core Integrity 0/700 Matter 290/300 Energy 41/100 System Corruption 1% Temperature Warm (170) Movement Flying (40) Location -7/Factory Parts ------- > --- POWER (1) -------- (None) > --- PROPULSION (6) --- Armored Wheel VTOL Module > --- UTILITY (4) ------ (None) > --- WEAPON (2) ------- Field Laser > --- INVENTORY (5) ---- Light Ion Engine Light Deuterium Engine Light Nuclear Core Sensor Array Advanced ECM Suite Peak State ------------ > --- POWER ------------ Light Nuclear Core > --- PROPULSION ------- Armored Treads Advanced Treads Advanced Treads Advanced Treads > --- UTILITY ---------- Advanced Heat Sink Large Storage Unit Visual Processing Unit Hacking Suite > --- WEAPON ----------- Advanced Beam Rifle Heavy Particle Cannon > --- INVENTORY -------- Improved Ion Engine Advanced Treads Improved Heat Sink Sensor Array Advanced ECM Suite Light Armor Plating Light Armor Plating Shield Generator Hacking Suite Particle Cannon Missile Launcher Missile Launcher Datajack Axe [Rating: 36] Favorites ----------- Power Improved Ion Engine Engine Improved Ion Engine Power Core Light Nuclear Core Propulsion Light Treads Treads Light Treads Leg Aluminum Leg Wheel Armored Wheel Hover Unit Improved Hover Unit Flight Unit VTOL Module Utility Large Storage Unit Device Cooling System Storage Large Storage Unit Processor Visual Processing Unit Hackware Hacking Suite Protection Light Armor Plating Weapon Particle Cannon Energy Gun Advanced Beam Rifle Energy Cannon Particle Cannon Launcher Missile Launcher Slashing Weapon Axe Special Melee Weapon Datajack Build | -11 -10 -10 -9 -9 -8 -7 ------- Run | Yrd Mat Min Mat Min Mat Fac Slots Evolved 6 | . . . 2 . 2 2 Power . | . . . . . . . Propulsion 4 | . . . 1 . 1 2 Utility 2 | . . . 1 . 1 . Weapon . | . . . . . . . Parts Attached 88 | 6 5 8 14 . 35 20 Power 16 | 1 1 3 4 . 4 3 Engine 13 | 1 1 2 4 . 2 3 Core 3 | . . 1 . . 2 . Reactor . | . . . . . . . Propulsion 37 | 2 . 3 6 . 14 12 Treads 23 | 2 . 2 6 . 13 . Leg 1 | . . . . . 1 . Wheel 2 | . . . . . . 2 Hover 6 | . . . . . . 6 Flight 5 | . . 1 . . . 4 Utility 18 | 1 2 . 2 . 10 3 Device 11 | . 1 . 1 . 7 2 Storage 2 | 1 1 . . . . . Processor 1 | . . . 1 . . . Hackware 2 | . . . . . 1 1 Protection 2 | . . . . . 2 . Artifact . | . . . . . . . Weapon 17 | 2 2 2 2 . 7 2 Energy Gun 4 | 2 . . . . 1 1 Energy Cannon 9 | . 2 2 2 . 3 . Ballistic Gun . | . . . . . . . Ballistic Cannon . | . . . . . . . Launcher 2 | . . . . . 2 . Special Weapon . | . . . . . . . Impact Weapon . | . . . . . . . Slashing Weapon 1 | . . . . . . 1 Piercing Weapon . | . . . . . . . Special Melee Weapon 1 | . . . . . 1 . Unidentified Prototypes . | . . . . . . . Parts Lost 60 | . . 8 4 . 24 24 Power 10 | . . 3 1 . 4 2 Propulsion 26 | . . 3 2 . 9 12 Utility 14 | . . . 1 . 7 6 Weapon 10 | . . 2 . . 4 4 Highest Loss Streak 12 | . . 4 2 . 6 12 To Critical Strikes . | . . . . . . . Average Backups 12 | 3 8 7 12 15 13 13 Power 2 | . 1 . 2 2 1 4 Propulsion 1 | 1 2 . 1 2 1 . Utility 5 | . 2 6 6 7 5 4 Weapon 2 | 1 1 . 1 3 3 2 Tool/Special . | . . . . . . . Unused Backups 19 | . 3 . 5 . 5 6 Power 5 | . . . 2 . 1 2 Propulsion 3 | . 2 . . . 1 . Utility 8 | . . . 3 . 1 4 Weapon 3 | . 1 . . . 2 . Tool/Special . | . . . . . . . Average Slot Usage (%) 95 | . 99 97 98 100 95 54 Engine 8 | . 14 12 10 11 5 2 Core 1 | . . . . . 3 . Treads 27 | . 28 22 31 33 28 3 Leg 1 | . . . . . 3 1 Device 10 | . 13 14 10 11 8 6 Storage 10 | . 14 14 11 11 9 7 Processor 5 | . . . 11 11 4 . Hackware 4 | . . . . . 8 9 Protection 2 | . . . . . 4 . Energy Gun 1 | . . . . . 4 1 Energy Cannon 18 | . 27 28 22 22 13 . Peak Build Rating 36 | 6 11 15 16 16 36 30 Average Rating 19 | 4 10 10 15 16 27 18 On Entrance 12 | . 6 11 10 16 16 28 Naked Turns . | . . . . . . . Heaviest Build 41 | 14 35 40 37 37 41 37 Greatest Support 88 | 40 40 40 60 60 88 43 Greatest Overweight (x) 8 | 1 . 1 1 . 1 8 Average Overweight (x) . | . . . . . . 1 Largest Inventory Capacity 15 | 8 15 15 15 15 15 15 Average Capacity 14 | 6 10 15 15 15 15 14 Most Carried 15 | 5 11 11 15 15 15 15 Average Carried 12 | 3 8 7 12 15 13 13 Final Capacity 15 | 8 15 15 15 15 15 5 Final Carried 15 | 4 11 6 15 15 14 5 Class Distribution -------------------- 71% | Scavenger-Mutant 27% | Mutant Dominant Class ---------------- Mutant | -10/Materials Mutant | -10/Mines Scavenger-Mutant | -9/Materials Scavenger-Mutant | -9/Mines Scavenger-Mutant | -8/Materials Scavenger-Mutant | -7/Factory Resources | -11 -10 -10 -9 -9 -8 -7 ----------- Run | Yrd Mat Min Mat Min Mat Fac Matter Collected 1578 | 197 123 153 178 . 725 202 Remotely . | . . . . . . . Salvage Created 5582 | . 582 263 1398 159 2755 425 Parts 280 | . 44 9 103 2 103 19 Haulers Intercepted 14 | . 2 . 6 . 5 1 Recyclers Shooed 2 | . 1 . 1 . . . Parts Field Recycled . | . . . . . . . Retrieved Matter . | . . . . . . . Parts Self-Destructed . | . . . . . . . Prevented . | . . . . . . . Kills | -11 -10 -10 -9 -9 -8 -7 ------- Run | Yrd Mat Min Mat Min Mat Fac Combat Hostiles Destroyed 111 | . 15 17 27 3 39 10 Melee 8 | . . . . . . 8 Guns 6 | . . . . . 6 . Cannons 92 | . 15 17 27 2 31 . AOE 4 | . . . . . 2 2 Classes Destroyed 13 | . 6 2 3 . 2 . Worker 1 | . . . 1 . . . Builder 7 | . 1 . 1 . 3 2 Hauler 14 | . 2 . 6 . 5 1 Recycler 8 | . . . 1 1 5 1 Operator 5 | . 2 . 2 . 1 . Watcher 13 | . 3 . 5 . 5 . Swarmer 37 | . 9 3 14 . 2 9 Grunt 36 | . 6 . 3 2 25 . Sentry 19 | . . . 10 . 8 1 Demolisher 2 | . . 2 . . . . Hunter 3 | . . . . . 3 . Heavy 1 | . . . . . 1 . Assembled 14 | . . 12 . 2 . . Best Kill Streak 12 | . 5 12 6 1 5 6 Combat Bots Only 12 | . 4 12 5 1 3 6 Max Kills in Single Turn 2 | . 1 2 1 1 1 1 Gunslinging . | . . . . . . . Exploded 1 | . . . . . 1 1 Melee 1 | . . . . . . 1 Uniques/NPCs Destroyed . | . . . . . . . Combat | -11 -10 -10 -9 -9 -8 -7 -------- Run | Yrd Mat Min Mat Min Mat Fac Hostile Shots Fired 683 | . 66 48 84 18 301 166 Missed 172 | . 10 10 23 8 74 47 Hits 511 | . 56 38 61 10 227 119 Melee 8 | . . 8 . . . . Projectile 503 | . 56 30 61 10 227 119 AOE 8 | . . 7 . . 1 . Critical Strikes 14 | . . . . . 11 3 Part Disruptions 1 | . . . . 1 . . Damage Taken 7842 | . 475 821 610 95 3870 1971 Core 1422 | . 35 138 86 12 437 714 Absorbed by Shields 61 | . . . . . 37 24 Core Remaining (%) 56 | 100 . 30 . 75 20 . Volleys Fired 378 | . 51 30 81 14 194 8 Largest 2 | . 2 2 2 2 2 2 Hottest 143 | . 136 136 136 136 143 131 Shots Fired 737 | . 102 59 162 27 377 10 Gun 69 | . 2 . . . 64 3 Cannon 653 | . 100 59 162 27 301 4 Launcher 15 | . . . . . 12 3 Special . | . . . . . . . Kinetic . | . . . . . . . Thermal 722 | . 102 59 162 27 365 7 Explosive 15 | . . . . . 12 3 Electromagnetic . | . . . . . . . Robot Hit Streak 12 | . 6 7 6 6 12 1 Robot Miss Streak 5 | . 4 3 4 5 5 1 Penetration Max . | . . . . . . . Secondary Targets . | . . . . . . . Shots Hit Robots 435 | . 51 34 78 10 244 18 Core Hits 193 | . 24 18 42 4 92 13 Critical Kills 2 | . . . 1 1 . . Critical Parts Destroyed . | . . . . . . . Critical Strikes 6 | . . . 1 1 3 1 Burn 3 | . . . . . 3 . Meltdown 2 | . . . 1 1 . . Sever 1 | . . . . . . 1 Melee Attacks 30 | . . . . . . 30 Impact . | . . . . . . . Slashing 30 | . . . . . . 30 Piercing . | . . . . . . . Sneak Attacks 5 | . . . . . . 5 Combat Hostiles 1 | . . . . . . 1 Follow-up Attacks . | . . . . . . . Damage Inflicted 10472 | . 1223 720 1676 314 5585 954 Guns 913 | . 13 . . . 900 . Cannons 8119 | . 1176 715 1644 299 4285 . Explosions 528 | . . . . . 367 161 Melee 789 | . . . . . . 789 Ramming 123 | . 34 5 32 15 33 4 Kinetic . | . . . . . . . Thermal 9032 | . 1189 715 1644 299 5185 . Explosive 528 | . . . . . 367 161 Electromagnetic . | . . . . . . . Impact . | . . . . . . . Slashing 789 | . . . . . . 789 Piercing . | . . . . . . . Highest Corruption 7 | . . 7 . . 3 1 Average Corruption 3 | . . 6 . . 2 1 Corruption Purged . | . . . . . . . Corruption Blocked . | . . . . . . . Effects 50 | . . 18 . . 32 . Message Errors 9 | . . 5 . . 4 . Matter Fused 12 | . . 4 . . 8 . Heat Flow Errors 10 | . . 1 . . 9 . Energy Discharges 4 | . . 3 . . 1 . Parts Rejected 1 | . . . . . 1 . Parts Fused 1 | . . 1 . . . . Data Loss (minor) 6 | . . 2 . . 4 . Data Loss (major) 2 | . . . . . 2 . Misfires 1 | . . 1 . . . . Alerts 1 | . . . . . 1 . Weapon Failures 3 | . . 1 . . 2 . Overload Shots . | . . . . . . . Overflow Damage 357 | . 24 20 11 . 151 151 Projectiles 136 | . 24 20 11 . 81 . Explosions 150 | . . . . . 68 82 Melee 71 | . . . . . 2 69 Knockbacks . | . . . . . . . Impact . | . . . . . . . Kinetic . | . . . . . . . Secondary . | . . . . . . . Self-Inflicted Damage 367 | . . . . . 212 155 Shots 5 | . . . . . 2 3 Rammed 26 | . 7 1 6 2 6 4 Targets Rammed 28 | . 7 1 7 2 7 4 Kicked . | . . . . . . . Crushed 2 | . . . 1 . 1 . Highest Temperature 431 | . 111 119 176 26 431 223 Average Temperature 73 | . 28 28 16 4 109 110 Received Heat Transfer 2155 | . 66 40 99 38 1519 393 Effects 8 | . . . . . 8 . Shutdowns 3 | . . . . . 3 . Energy Bleed 3 | . . . . . 3 . Matter Decay 1 | . . . . . 1 . Damage (minor) 1 | . . . . . 1 . Siege Activations . | . . . . . . . Martial Activations . | . . . . . . . Shielding Activations . | . . . . . . . Robots Disrupted . | . . . . . . . Combat Hostiles . | . . . . . . . Robots Corrupted 1 | . . . . . 1 . Combat Hostiles . | . . . . . . . Parts Fried 2 | . . . . . 2 . Impact Corruptions 1 | . . . . . 1 . Robots Melted 2 | . . . 1 1 . . Combat Hostiles 1 | . . . . 1 . . Parts Melted 31 | . 1 . 9 1 20 . Heat Transferred 15873 | . 2146 1295 2923 518 8991 . Parts Sabotaged . | . . . . . . . Parts Stolen . | . . . . . . . Parts Stripped . | . . . . . . . Power Chain Reactions . | . . . . . . . Alert | -11 -10 -10 -9 -9 -8 -7 ------- Run | Yrd Mat Min Mat Min Mat Fac Maximum Alert Level 2 | . . . 1 . 2 1 Low Security (%) 75 | 100 100 100 84 100 52 58 Level 1 15 | . . . 15 . 23 41 Level 2 9 | . . . . . 23 . Level 3 . | . . . . . . . Level 4 . | . . . . . . . Level 5 . | . . . . . . . High Security . | . . . . . . . Max Security . | . . . . . . . Peak Influence 553 | . 186 62 269 93 553 251 Initial 251 | . . . . 15 8 251 Average 134 | . 58 9 97 18 225 183 Influence Increases 3545 | . 465 120 939 172 1458 391 Destroy 0b10 Robot/C 2040 | . 300 100 540 120 780 200 Destroy 0b10 Robot/NC 245 | . 40 . 80 10 95 20 Destroy Leader 554 | . 80 20 172 10 240 32 Allied During Kill 18 | . . . . 17 1 . Trap Triggered on 0b10 10 | . . . . . 10 . Successful Hack 61 | . 11 . 36 . 14 . Disable Machine 180 | . 15 . 15 15 90 45 Destroy Structure 167 | . 4 . 6 . 123 34 Partial Spotted 15 | . . . . . . 15 Lose Combat Pursuer 255 | . 15 . 90 . 105 45 Influence Decreases 3405 | . 465 120 900 189 927 804 Entered New Map 340 | . . . . 24 14 302 Time Decay 2135 | . 465 80 595 165 568 262 Lost Part 530 | . . 40 40 . 210 240 Lost Ally 20 | . . . . . 20 . Purge Threat 380 | . . . 265 . 115 . Squads Dispatched 15 | . 4 . . . 9 2 Investigation 6 | . 2 . . . 4 . Extermination 1 | . . . . . . 1 Reinforcement 7 | . 2 . . . 4 1 Assault 1 | . . . . . 1 . Garrison . | . . . . . . . Intercept . | . . . . . . . Searches Triggered . | . . . . . . . Construction Impeded 2 | . . . . . 1 1 Haulers Reinforced . | . . . . . . . Active Scanning Responses . | . . . . . . . Cargo Convoy Interrupts . | . . . . . . . Stealth | -11 -10 -10 -9 -9 -8 -7 --------- Run | Yrd Mat Min Mat Min Mat Fac Distress Signals 5 | . 1 . 3 . 1 . Communications Jammed . | . . . . . . . Distress Signals . | . . . . . . . Times Spotted 185 | . 28 28 34 8 64 23 Peak Tracking Total 14 | . 6 14 5 3 4 10 Tactical Retreats 14 | . 1 2 3 . 5 3 Traps | -11 -10 -10 -9 -9 -8 -7 ------- Run | Yrd Mat Min Mat Min Mat Fac Traps Triggered 6 | . 2 . . . 4 . Indirectly . | . . . . . . . Trap Hack Attempts 5 | . . . . . 5 . Triggered . | . . . . . . . Disarmed . | . . . . . . . Reprogrammed 1 | . . . . . 1 . Reused 1 | . . . . . 1 . Traps Extracted . | . . . . . . . Installed . | . . . . . . . Triggered 1 | . . . . . 1 . Machines | -11 -10 -10 -9 -9 -8 -7 ---------- Run | Yrd Mat Min Mat Min Mat Fac Machines Disabled 13 | . 1 . 2 1 6 3 Max in Single Turn 3 | . 1 . 1 . 3 3 Garrison Access 1 | . . . . . 1 . Machines Repaired . | . . . . . . . Machines Dismantled . | . . . . . . . Machines Sabotaged . | . . . . . . . Overloaded Fab Kills . | . . . . . . . Hacking | -11 -10 -10 -9 -9 -8 -7 --------- Run | Yrd Mat Min Mat Min Mat Fac Machines Accessed 33 | . 7 . 12 . 13 1 Terminals 27 | . 5 . 12 . 9 1 Fabricators . | . . . . . . . Repair Stations . | . . . . . . . Recycling Units 4 | . 2 . . . 2 . Scanalyzers 1 | . . . . . 1 . Garrison Access 1 | . . . . . 1 . Total Hacks 89 | . 19 . 33 . 35 2 Successful 39 | . 11 . 12 . 16 . Failed 49 | . 7 . 21 . 19 2 Catastrophic 14 | . 1 . 4 . 8 1 Database Lockouts 1 | . 1 . . . . . Manual 50 | . 14 . 16 . 18 2 Terminals 73 | . 12 . 33 . 26 2 Fabricators . | . . . . . . . Repair Stations . | . . . . . . . Recycling Units 10 | . 7 . . . 3 . Scanalyzers 5 | . . . . . 5 . Garrison Access 1 | . . . . . 1 . Terminal Hacks 23 | . 4 . 11 . 8 . Record 1 | . . . . . 1 . Robot Schematic 1 | . . . 1 . . . Robot Analysis 3 | . 1 . 2 . . . Prototype ID Bank 6 | . 1 . 4 . 1 . Branch Access Points 1 | . . . . . 1 . Alert Level 3 | . 1 . . . 2 . Unreport Threat 4 | . . . 3 . 1 . Dispatch Records 1 | . . . 1 . . . Security Status 2 | . . . . . 2 . Registered Components 1 | . 1 . . . . . Fabricator Hacks . | . . . . . . . Repair Station Hacks . | . . . . . . . Recycling Unit Hacks 2 | . 1 . . . 1 . Retrieve Components 2 | . 1 . . . 1 . Scanalyzer 5 | . . . . . 5 . Insert Component 3 | . . . . . 3 . Analyze 2 | . . . . . 2 . Garrison Access Hacks 1 | . . . . . 1 . Seal Access 1 | . . . . . 1 . Unauthorized Hacks 4 | . 2 . 1 . 1 . Terminals 2 | . 1 . 1 . . . Operators 2 | . 1 . 1 . . . Fabricators . | . . . . . . . Repair Stations . | . . . . . . . Recycling Units 2 | . 1 . . . 1 . Monitor 2 | . 1 . . . 1 . Scanalyzers . | . . . . . . . Garrison Access . | . . . . . . . Data Cores Recovered 2 | . . . 2 . . . Used 1 | . . . 1 . . . Hacking Detections 30 | . 6 . 12 . 11 1 Full Trace Events 5 | . 1 . . . 4 . Feedback Events 1 | . . . . . 1 . Corruption 1 | . . . . . 1 . Feedback Blocked . | . . . . . . . Robot Schematics Acquired 1 | . . . 1 . . . Robots Built . | . . . . . . . Authchips . | . . . . . . . Time . | . . . . . . . Total Robot Build Rating . | . . . . . . . Part Schematics Acquired 2 | . . . . . 2 . Parts Built . | . . . . . . . Authchips . | . . . . . . . Time . | . . . . . . . Total Part Build Rating . | . . . . . . . Parts Repaired . | . . . . . . . Time . | . . . . . . . Parts Recycled . | . . . . . . . Recycled Matter . | . . . . . . . Retrieved Matter . | . . . . . . . Retrieved Components 14 | . 4 . . . 10 . Parts Scanalyzed 2 | . . . . . 2 . Part Schematics Acquired 2 | . . . . . 2 . Parts Damaged . | . . . . . . . Bothacking | -11 -10 -10 -9 -9 -8 -7 ------------ Run | Yrd Mat Min Mat Min Mat Fac Used RIF Installer . | . . . . . . . Robots Hacked . | . . . . . . . Non-combat . | . . . . . . . Combat . | . . . . . . . Robot Hacks Applied . | . . . . . . . Relay Couplers Released . | . . . . . . . Fabnet Peak Effective % . | . . . . . . . Robots Rewired . | . . . . . . . Allies Hacked . | . . . . . . . Hacks Repelled . | . . . . . . . Allies | -11 -10 -10 -9 -9 -8 -7 -------- Run | Yrd Mat Min Mat Min Mat Fac Total Allies 3 | . . . . 3 . . Largest Group 3 | . . . . 3 2 . Highest-Rated Group 40 | . . . . 40 24 . Highest-Rated Ally 16 | . . . . 16 16 . Total Orders . | . . . . . . . Ally Attacks 35 | . . . . 22 13 . Total Damage 293 | . . . . 202 91 . Kills 6 | . . . . 6 . . Allies Corrupted . | . . . . . . . Allies Melted . | . . . . . . . Intel | -11 -10 -10 -9 -9 -8 -7 ------- Run | Yrd Mat Min Mat Min Mat Fac Active Infowar (turns) 6457 | . . . 2332 1022 2697 406 Optics 5795 | . . . 2332 1022 2441 . Sensors 610 | . . . . . 256 354 Structural 52 | . . . . . . 52 Robot Analysis Total 3 | . 1 . 2 . . . Derelict Logs Recovered 2 | . . 1 . 1 . . Drone Launches . | . . . . . . . Drone Recoveries . | . . . . . . . Exploration | -11 -10 -10 -9 -9 -8 -7 ------------- Run | Yrd Mat Min Mat Min Mat Fac Turns Passed 11188 | 130 1798 697 2332 1022 4645 564 Spaces Moved 5799 | 89 980 225 1219 612 2372 302 Core 71 | 35 . . . . . 36 Treads 5509 | 54 980 225 1219 612 2372 47 Legs 1 | . . . . . . 1 Wheels 15 | . . . . . . 15 Hover 113 | . . . . . . 113 Flight 90 | . . . . . . 90 Fastest Speed 40 | 50 160 160 160 160 145 40 Average Speed 159 | 128 160 200 161 160 159 131 Slowest Speed 450 | 160 160 240 240 160 240 450 Overloaded Moves . | . . . . . . . Propulsion Burnouts . | . . . . . . . Robots Hopped . | . . . . . . . Potential Cave-ins 1 | . . . . . . 1 Cave-ins Triggered . | . . . . . . . Exploration Rate (%) 62 | 5 95 41 97 93 95 10 Regions Visited 6 Branch Regions 2 Pre-discovered Areas 1 | . . . . 1 . . Known Exits Taken . | . . . . . . . Unknown Exits Taken 6 | 1 1 1 1 1 1 . Scrap Searched 3 | . . 1 . 2 . . Spaces Dug 14 | . . . . . 5 9 Terrain Destroyed 181 | . . . . . 141 40 Melee 9 | . . . . . . 9 Projectile 34 | . . . . . 34 . AOE 138 | . . . . . 107 31 Terrain Rammed . | . . . . . . . Walls Destroyed . | . . . . . . . Machines Disabled . | . . . . . . . Actions | -11 -10 -10 -9 -9 -8 -7 --------- Run | Yrd Mat Min Mat Min Mat Fac Total 6914 | 104 1107 411 1416 627 2857 392 Wait 457 | . 43 147 62 . 185 20 Move 5793 | 88 979 224 1218 611 2371 302 Hop . | . . . . . . . Pick Up 63 | 8 13 1 16 . 23 2 Fast Attach 30 | 2 . 2 5 . 10 11 Attach 49 | 5 2 6 5 . 24 7 Detach 4 | 1 1 . 1 . 1 . Swap 41 | . 4 . 8 . 22 7 Drop 36 | . 7 . 13 . 15 1 Fire 378 | . 51 30 81 14 194 8 Melee 30 | . . . . . . 30 Ram 4 | . . . . . . 4 Kick . | . . . . . . . Crush 24 | . 7 1 7 2 7 . Escape Stasis . | . . . . . . . Rewire . | . . . . . . . Trap 5 | . . . . . 5 . Miscellaneous . | . . . . . . . Route ------- -11/Scrapyard -10/Materials (discovered 5 exits: *Mat x3 / [*Min] / [*Sub]) -10/Mines (discovered 2 exits: *Mat / [*Exi]) -9/Materials (discovered 4 exits: *Mat x3 / [*Min]) -9/Mines (discovered 2 exits: *Mat x2) -8/Materials (discovered 2 exits: *Fac x2) -7/Factory History --------- Turn | Location | Event 8 | -11/Scrapyard | Discovered new exit (range 16) 131 | -11/Scrapyard | Entered Materials 307 | -10/Materials | Build established: Mutant 325 | -10/Materials | Discovered new exit (range 7) 559 | -10/Materials | Discovered new exit (range 14) 938 | -10/Materials | Central database locked down 1285 | -10/Materials | Discovered new exit (range 11) 1306 | -10/Materials | Discovered new exit (range 8) 1830 | -10/Materials | Discovered new exit (range 15) 1929 | -10/Materials | Entered Mines 1930 | -10/Mines | Assembled infested the area 1935 | -10/Mines | Assisted by a Guerilla fighting off Assembled 1952 | -10/Mines | Learned Materials emergency access door positions 2013 | -10/Mines | Core integrity fell below 50% 2032 | -10/Mines | Lost 4 parts (1p2n1w) 2051 | -10/Mines | Destroyed 12 combat bots 2378 | -10/Mines | Lost 4 parts (2p1n1w) 2515 | -10/Mines | Discovered new exit (range 15) 2561 | -10/Mines | Deemed a non-threat by the Exiles lab entrance 2563 | -10/Mines | Discovered new exit (range 5) 2626 | -10/Mines | Entered Materials 2626 | -9/Materials | Evolved 2 slots: Propulsion x1, Utility x1 3162 | -9/Materials | Build established: Scavenger-Mutant 3823 | -9/Materials | Discovered new exit (range 3) 4023 | -9/Materials | Discovered new exit (range 14) 4472 | -9/Materials | Discovered new exit (range 14) 4694 | -9/Materials | Discovered new exit (range 10) 4958 | -9/Materials | Entered Mines 5061 | -9/Mines | Learned Materials terminal intel 5341 | -9/Mines | Assisted by bots powering up and referring to "LRC-V3" 5378 | -9/Mines | Discovered new exit (range 9) 5469 | -9/Mines | Discovered new exit (range 3) 5549 | -9/Mines | Excavation squad dispatched 5549 | -9/Mines | A large section of the Mines collapsed 5705 | -9/Mines | Learned location of Storage (-7) 5980 | -9/Mines | Entered Materials 5980 | -8/Materials | Accompanied by 2 allies 5980 | -8/Materials | Evolved 2 slots: Propulsion x1, Utility x1 5981 | -8/Materials | Loaded intel: 12 terminal locations 6748 | -8/Materials | Discovered new exit (range 8) 8409 | -8/Materials | Lost 3 parts (1n1u1w) 8421 | -8/Materials | Discovered new exit (range 18) 8440 | -8/Materials | Core integrity fell below 50% 8480 | -8/Materials | Lost 6 parts (1p2n2u1w) 9580 | -8/Materials | First assault squad dispatched 10625 | -8/Materials | Entered Factory 10625 | -7/Factory | Evolved 2 slots: Propulsion x2 10778 | -7/Factory | Lost 6 parts (1p3n1u1w) 11041 | -7/Factory | Core integrity fell below 50% 11080 | -7/Factory | Lost 12 parts (1p6n3u2w) 11122 | -7/Factory | Core integrity fell below 20% 11189 | -7/Factory | Destroyed by G-50 Soldier with Heavy Laser Last Messages --------------- 11089_ U-05 Engineer lays Concrete. 11091_ C-30 ARC bursts open, deploying its payload. 11091_ G-47 Trooper unfolds itself. 11091_ U-05 Engineer lays Concrete. 11091_ K-01 Serf collects debris. 11092_ U-05 Engineer lays Concrete. 11092_ K-01 Serf collects debris. 11093_ U-05 Engineer lays Concrete. 11095_ K-01 Serf collects debris. 11096_ U-05 Engineer lays Concrete. 11142_ Acquired Arm. Wheel. 11163_ ALERT: Potential suspicious activity detected, Programmers report to Factory Zone 3P. 11172_ VTOL Module destroyed. 11180_ Critical hit (Burn: +37). 11183_ Hacking Suite destroyed. 11186_ Particle Cannon destroyed. 11188_ Lrg. Storage Unit destroyed. Map ----- +----------------------------------------------------+ | ## """ """ #???????????????????????? | | # #?????????? #???????????? | | # """ """ #????????? #???????????? | | """ """ !#???????? / ??????????? | | % # """ """ #??????? #???????????? | | [ #?????? #???????????? | | #####+#############/############ ###?????????? | | ????????? | | ????????? | | ???????? | | ???????? | | ???????? | | #####+####### ############+#######+#?????????????? | | # ?# #????????????????????? | | ? # ?# """"""""" #????????????????????? | | # ?# #????????????????????? | | # ?# """""""""s #????????????????????? | | # ?# #????????????????????? | | ? # ?# """"""""" #????????????????????? | | ???? # ?# #????????????????????? | | ?????? # ?#g""""""""" #????????????????????? | | ???????? # ?# gg g ]#????????????????????? | | ?????????? ???# """"""""" #????????????????????? | | ???????????????# g gg #????????????????????? | | ???????????????# | *!/ #????????????????????? | | ???????????????##########@###????????????????????? | | ????????????????????????#*#??????????????????????? | | ????????????????????????#!#??????????????????????? | | ????????????????????????# #??????????????????????? | | ????????????????????????#t ??????????????????????? | | ????????????????????????+ ??????????????????????? | | ????????????????????????# ??????????????????????? | | ????????????????????????###??????????????????????? | | ?????????????????????????????????????????????????? | | ?????????????????????????????????????????????????? | | ?????????????????????????????????????????????????? | | ?????????????????????????????????????????????????? | | ?????????????????????????????????????????????????? | | ?????????????????????????????????????????????????? | | ?????????????????????????????????????????????????? | | ?????????????????????????????????????????????????? | | ?????????????????????????????????????????????????? | | ?????????????????????????????????????????????????? | | ?????????????????????????????????????????????????? | | ?????????????????????????????????????????????????? | | ?????????????????????????????????????????????????? | | ?????????????????????????????????????????????????? | | ?????????????????????????????????????????????????? | | ?????????????????????????????????????????????????? | | ?????????????????????????????????????????????????? | +----------------------------------------------------+ Best States ------------- Heat Dissipation 53 Energy Generation 18 Energy Capacity 310 Matter Stores 300 Matter Capacity 300 Sight Range 18 Robot Scan Range 15 Terrain Scan Density 10 Armor Coverage 300 Evasion (%) 57 Recoil Reduction 4 Offensive Hacking 20 Item Schematics ----------------- Hacking Suite | -8/Materials | Scanalyzed Adv. Beam Rifle | -8/Materials | Scanalyzed Robot Schematics ------------------ M-13 Machinist | -9/Materials | Hacked Fabricated ------------ Nothing Repaired ---------- Nothing Alien Tech Used ----------------- None Achievements -------------- Universal Adapter Challenges ------------ None Game ------ Seed EtherialSuspensionCompactor Manual? 0 Play Time 02:28:41 Cumulative 23.4 hours Start 2025.09.13 @ 21:52:31 End 2025.09.14 @ 12:10:00 Sessions 5 Manual Loads 0 Difficulty Rogue Special Mode None Game No. 26 Rogue 26 Adventurer 0 Explorer 0 Win Type - Total 0 Types 0/0/0/0/0/0/0/0/0/0 Lore% 22 Gallery% 18 Achievement% 21 Wizard Run 0 Options --------- Layout 1 ASCII 0 Keyboard 1 Movement Vi Keybinds 0 Fullscreen 2 Font 24/Smallcaps Map View 50x35 Zoom Use 0% Tactical HUD 1 Map Filters NONE Filters NONE Steam 1 RUN: eb69dfb1-d2ef-46ab-a867-c4ba017e0756